bitfinex-derivatives/quotes_ETHF0:USTF0_20250612
["timestamp","ask_amount","ask_price","bid_price","bid_amount"]
[1749732194688,0.7286,2744.9,2744.8,0.72852]
[1749732195095,0.7286,2744.9,2744.7,2.0196]
[1749732195397,0.72855,2744.7,2744.6,0.00547156]
[1749732195597,0.72855,2744.7,2744.6,23.72147156]
[1749732195793,0.7286,2744.9,2744.6,23.72147156]
[1749732196095,0.7286,2744.9,2744.8,0.72852]
[1749732196299,0.72852,2744.8,2744.7,6.623]
[1749732196491,0.7286,2744.9,2744.8,24.44152]
[1749732196691,0.7286,2744.9,2744.8,25.66012]
[1749732197089,1.4571,2744.9,2744.8,25.66012]
[1749732197293,0.7286,2744.9,2744.8,25.66012]
[1749732197493,0.7286,2744.9,2744.8,28.86792]
[1749732197693,0.7286,2744.9,2744.8,29.70782]
[1749732198500,0.72833,2745.6,2745.5,0.72834]
[1749732198695,0.72833,2745.6,2745.5,23.711]
[1749732198891,0.72842,2745.2,2745.1,3.2078]
[1749732199096,0.72838,2745.4,2745.1,33.5388]
[1749732199292,3.2078,2745.8,2745.1,35.35989]
[1749732199595,0.72832,2745.6,2745.5,0.72832]
[1749732199796,0.72832,2745.6,2745.5,23.709]
[1749732199995,0.72831,2745.6,2745.5,23.708]
[1749732200604,0.72842,2745.2,2745.1,3.2078]
[1749732200807,0.72842,2745.2,2745.1,33.5378]
[1749732200999,3.2078,2745.8,2745.1,33.5378]
[1749732201195,0.72838,2745.4,2745.3,0.72838]
[1749732202105,3.08452,2745.7,2745.1,3.2078]
[1749732202106,0.72842,2745.2,2745.1,3.2078]
[1749732202296,0.72842,2745.2,2745.1,9.8298]
[1749732202498,0.72842,2745.2,2745.1,33.5338]
[1749732203196,0.72842,2745.2,2745.1,34.26224]
[1749732203394,0.72838,2745.4,2745.3,0.72839]
[1749732203798,0.72842,2745.3,2745.2,0.7284]
[1749732204102,0.72842,2745.2,2745.1,34.26223]
[1749732204307,0.72842,2745.2,2745.1,33.5338]
[1749732204504,0.72842,2745.2,2745.1,3.2078]
[1749732204704,0.72842,2745.2,2745.1,26.9108]
[1749732205002,0.72841,2745.3,2745.2,0.72838]
[1749732205308,0.72839,2745.4,2745.3,0.72836]
[1749732205608,0.72842,2745.3,2745.2,0.7284]
[1749732206101,0.72839,2745.4,2745.3,0.72836]
[1749732206306,0.72839,2745.4,2745.1,26.9108]
[1749732206307,0.72842,2745.2,2745.1,27.63922]
[1749732206514,0.72842,2745.2,2745.1,26.9078]
[1749732207214,0.72847,2745.0,2744.9,7.34948]
[1749732207503,0.72847,2745.0,2744.9,31.04948]
[1749732207911,0.7285,2744.9,2744.8,3.2078]
[1749732208108,0.7285,2744.9,2744.8,26.9068]
[1749732208611,0.7285,2744.9,2744.8,27.63532]
[1749732209012,0.7285,2744.9,2744.8,26.9068]
[1749732209212,0.7285,2744.9,2744.8,27.63532]
[1749732209604,0.7285,2744.9,2744.8,3.93632]
[1749732209806,0.7285,2744.9,2744.8,27.63432]
[1749732210104,0.72855,2744.7,2744.6,0.00547156]
[1749732211812,3.93635,2744.7,2744.6,0.00547156]
[1749732212203,0.72855,2744.7,2744.6,0.00547156]
[1749732212717,3.93635,2744.7,2744.6,0.00547156]
[1749732213407,0.72868,2744.2,2744.1,3.2078]
[1749732213602,0.72868,2744.2,2744.1,3.93651]
[1749732214209,1.2822,2744.6,2744.1,3.2078]
[1749732214413,0.72863,2744.5,2744.4,0.72861]
[1749732214619,0.73406156,2744.6,2744.5,0.7286]
[1749732214810,0.00547156,2744.6,2744.5,0.7286]
[1749732215005,0.7285,2744.9,2744.8,0.72848]
[1749732215209,0.7285,2744.9,2744.8,24.42348]
[1749732215515,0.7285,2744.9,2744.8,23.695]
[1749732215714,0.7285,2744.9,2744.7,0.72853]
[1749732215715,1.82118,2745.0,2744.4,4.4127]
[1749732215911,0.72866,2744.3,2744.2,31.80996]
[1749732216707,0.72864,2744.4,2744.3,0.72862]
[1749732217318,0.72866,2744.3,2744.2,30.303]
[1749732217906,0.72866,2744.3,2744.2,31.03168]
[1749732218406,0.72866,2744.3,2744.2,6.61]
[1749732218711,0.72868,2744.2,2744.1,0.00547156]
[1749732218912,1.93888,2744.2,2744.1,0.00547156]
[1749732219314,6.93888,2744.2,2744.1,0.00547156]
[1749732219510,0.72887,2743.5,2743.4,0.7972]
[1749732219716,0.72887,2743.5,2743.4,25.21709]
[1749732220615,0.72887,2743.5,2743.4,24.4882]
[1749732220813,0.00547156,2743.7,2743.6,0.72884]
[1749732221013,0.00547156,2743.7,2743.6,3.93664]
[1749732221314,0.00547156,2743.7,2743.6,8.93664]
[1749732221523,0.00547156,2743.7,2743.4,7.4072]
[1749732221710,0.72886,2743.6,2743.5,0.72884]
[1749732221917,0.00547156,2743.7,2743.4,31.02987]
[1749732221918,0.72887,2743.5,2743.4,31.02987]
[1749732222413,0.72887,2743.5,2743.4,30.301]
[1749732222610,0.72887,2743.5,2743.4,6.61]
[1749732222810,0.72887,2743.5,2743.4,30.302]
[1749732223215,0.00547156,2743.7,2743.4,30.302]
[1749732223416,0.72887,2743.5,2743.4,30.302]
[1749732223817,0.72887,2743.5,2743.4,31.03088]
[1749732224412,0.72887,2743.5,2743.4,30.302]
[1749732225313,0.72887,2743.5,2743.4,31.03089]
[1749732225618,0.72888,2743.5,2743.4,0.72887]
[1749732225818,0.72888,2743.5,2743.4,24.41887]
[1749732226218,0.72888,2743.5,2743.4,23.69]
[1749732226519,0.72888,2743.5,2743.4,24.41889]
[1749732226721,0.72888,2743.5,2743.4,23.69]
[1749732226915,0.72889,2743.4,2743.3,9.8188]
[1749732227117,0.72889,2743.4,2743.3,33.5108]
[1749732227621,0.72889,2743.4,2743.3,9.8188]
[1749732227919,0.72889,2743.4,2743.3,26.8988]
[1749732228222,0.72889,2743.4,2743.3,27.62772]
[1749732228425,0.72889,2743.5,2743.4,0.72887]
[1749732229318,0.73431156,2743.7,2743.6,0.72884]
[1749732229516,0.73431156,2743.7,2743.6,23.691]
[1749732230619,0.73431156,2743.7,2743.2,0.00547156]
[1749732230620,1.82211,2743.6,2743.2,0.00547156]
[1749732230815,0.72892,2743.3,2743.2,0.00547156]
[1749732231018,0.72892,2743.3,2743.2,24.42442156]
[1749732231622,0.72892,2743.3,2743.2,23.69547156]
[1749732232013,0.72892,2743.3,2743.2,23.69747156]
[1749732232221,0.72892,2743.3,2743.2,23.69647156]
[1749732233428,0.72892,2743.3,2743.2,24.42542156]
[1749732237638,0.7289,2743.5,2743.4,0.72887]
[1749732237926,0.72887,2743.6,2743.5,0.72884]
[1749732238130,0.72887,2743.6,2743.5,24.41784]
[1749732238328,0.73430156,2743.7,2743.6,0.72884]
[1749732240634,0.00547156,2743.7,2743.6,0.72884]
[1749732240827,0.73428156,2743.7,2743.6,1.94204]
[1749732241932,0.73428156,2743.7,2743.6,0.72884]
[1749732242133,0.00547156,2743.7,2743.6,0.72884]
[1749732242941,0.73428156,2743.7,2743.6,0.72884]
[1749732243734,0.73428156,2743.7,2743.4,6.613]
[1749732243735,0.00547156,2743.7,2743.4,6.613]
[1749732243934,0.72887,2743.5,2743.4,6.613]
[1749732244140,0.72889,2743.4,2743.3,0.72892]
[1749732244335,0.72889,2743.4,2743.3,23.683]
[1749732245140,0.72892,2743.3,2743.2,0.00547156]
[1749732246532,0.72892,2743.3,2743.2,23.68747156]
[1749732246740,3.93672,2743.3,2743.2,0.00547156]
[1749732248536,1.82244,2743.2,2742.5,3.2078]
[1749732248735,1.82271,2742.7,2742.3,11.60952047]
[1749732248939,0.72919,2742.3,2742.2,3.2078]
[1749732249335,1.82297,2742.3,2741.8,27.6171]
[1749732249538,0.72929,2741.9,2741.8,27.62257156]
[1749732249737,0.72929,2741.9,2741.8,3.21327156]
[1749732249933,0.72929,2742.0,2741.9,0.72929]
[1749732250138,0.72929,2741.9,2741.8,26.89427156]
[1749732250744,0.72926,2742.1,2742.0,0.72926]
[1749732251140,0.72927,2742.0,2741.9,0.72927]
[1749732251340,1.27997156,2742.3,2742.2,0.72921]
[1749732251341,0.00547156,2742.3,2742.2,0.72921]
[1749732251643,0.00547156,2742.3,2742.2,24.40921]
[1749732252341,0.73466156,2742.3,2742.2,23.68]
[1749732252548,0.72924,2742.1,2742.0,7.4202]
[1749732252737,0.00547156,2742.3,2742.2,0.72921]
[1749732252738,0.73467156,2742.3,2742.2,0.72921]
[1749732253044,0.00547156,2742.3,2742.0,31.1022]
[1749732253242,0.00547156,2742.3,2742.1,23.681]
[1749732253446,0.72924,2742.1,2742.0,30.282]
[1749732253743,0.72929,2741.9,2741.8,3.21327156]
[1749732254138,0.8386,2742.1,2741.8,26.89427156]
[1749732254334,0.8386,2742.1,2742.0,0.72927]
[1749732254538,1.56787,2742.1,2742.0,0.72927]
[1749732254842,0.72929,2742.0,2741.9,0.72928]
[1749732255041,0.72929,2741.9,2741.8,27.62358156]
[1749732256244,0.72929,2741.9,2741.8,26.89427156]
[1749732257049,0.72929,2741.9,2741.8,0.00547156]
[1749732258548,0.72928,2742.0,2741.9,0.72927]
[1749732258750,0.72928,2742.0,2741.9,24.40827]
[1749732259645,3.93706,2742.1,2742.0,0.72927]
[1749732259942,1.55432,2742.2,2742.1,0.72924]
[1749732260143,0.72924,2742.1,2742.0,2.0142]
[1749732260351,0.72924,2742.1,2742.0,2.74346]
[1749732261044,0.00547156,2742.3,2742.0,2.0142]
[1749732261255,0.72924,2742.2,2742.1,0.72924]
[1749732261850,0.72924,2742.1,2742.0,2.74345]
[1749732262948,0.72923,2742.2,2742.1,0.72921]
[1749732263548,0.8396,2742.6,2742.5,0.72913]
[1749732263740,0.72908,2742.8,2742.7,0.72905]
[1749732263945,0.72908,2742.8,2742.7,23.677]
[1749732264346,0.72902,2743.0,2742.9,0.729]
[1749732264545,0.78547156,2743.2,2743.1,0.72897]
[1749732264747,0.00547156,2743.2,2743.1,24.40497]
[1749732265251,0.00547156,2743.2,2743.1,65.20497]
[1749732265647,1.50533,2743.7,2743.6,0.72884]
[1749732265946,0.72878,2743.9,2743.8,0.72879]
[1749732266747,0.72881,2743.7,2743.6,0.00547156]
[1749732266951,3.93661,2743.7,2743.6,0.00547156]
[1749732267652,0.72895,2743.2,2743.1,40.8]
[1749732268053,0.72895,2743.2,2743.1,64.469]
[1749732268255,0.72894,2743.3,2743.2,0.72893]
[1749732268955,0.72895,2743.2,2743.1,48.12996]
[1749732269154,0.72895,2743.3,2743.2,0.72894]
[1749732269456,0.72891,2743.4,2743.3,0.7289]
[1749732269850,0.72893,2743.3,2743.2,0.72893]
[1749732270045,0.72891,2743.4,2743.3,0.72891]
[1749732270344,0.72889,2743.5,2743.4,0.72888]
[1749732270551,0.72889,2743.5,2743.4,23.668]
[1749732271352,0.802,2743.6,2743.1,41.52895]
[1749732271557,0.72892,2743.3,2743.2,23.665]
[1749732272150,0.72892,2743.3,2743.2,24.39395]
[1749732272351,0.72892,2743.3,2743.2,23.665]
[1749732272551,0.72892,2743.3,2743.2,24.39395]
[1749732272953,0.72892,2743.3,2743.2,23.665]
[1749732273154,0.802,2743.6,2743.2,23.665]
[1749732273354,0.3933,2743.7,2743.6,0.72884]
[1749732273556,0.3933,2743.7,2743.6,24.39184]
[1749732273856,0.73424,2743.9,2743.8,0.72879]
[1749732274062,0.72881,2743.8,2743.7,0.72879]
[1749732275759,0.73425,2743.9,2743.8,0.72879]
[1749732275961,0.00547,2743.9,2743.8,0.72879]
[1749732276162,0.00547,2743.9,2743.8,3.93659]
[1749732276657,0.34886912,2744.0,2743.9,0.72876]
[1749732276855,0.34886912,2744.0,2743.9,33.05006]
[1749732277352,0.34886912,2744.0,2743.9,73.85006]
[1749732277752,0.34886912,2744.0,2743.9,78.85006]
[1749732278154,9.12e-06,2744.0,2743.9,78.85006]
[1749732278352,9.12e-06,2744.0,2743.9,48.60906]
[1749732278562,9.12e-06,2744.0,2743.9,78.84806]
[1749732278761,0.72853,2744.8,2744.7,0.72855]
[1749732278959,0.72853,2744.8,2744.7,30.239]
[1749732279156,0.72858,2744.6,2744.5,3.94186156]
[1749732279557,0.72857,2744.7,2744.6,0.72856]
[1749732280056,0.72857,2744.7,2744.6,30.96156]
[1749732280265,0.8113,2745.2,2744.6,30.233]
[1749732280458,0.8113,2745.2,2744.8,3.93631]
[1749732280659,0.8113,2745.2,2744.8,3.2078]
[1749732280859,0.72848,2745.0,2744.8,3.2078]
[1749732281065,0.72848,2745.0,2744.9,30.232]
[1749732281360,0.7285,2744.9,2744.8,3.2078]
[1749732281756,4.64206,2745.2,2744.6,23.648]
[1749732282056,4.64209,2745.2,2744.6,24.37656]
[1749732282255,4.64209,2745.2,2744.7,0.72855]
[1749732282457,0.7285,2744.9,2744.8,6.582]
[1749732282667,2.821,2745.2,2744.8,30.23]
[1749732282858,0.7285,2744.9,2744.8,30.23]
[1749732283759,0.7285,2744.9,2744.8,6.582]
[1749732283960,0.72858,2744.6,2744.5,0.00547156]
[1749732284968,3.93638,2744.6,2744.5,0.00547156]
[1749732285265,0.72858,2744.6,2744.5,0.00547156]
[1749732285571,0.72873,2744.0,2743.9,47.381]
[1749732285757,0.72873,2744.0,2743.9,71.024]
[1749732285961,0.72873,2744.0,2743.9,71.75276]
[1749732286157,0.72873,2744.0,2743.9,6.581]
[1749732286664,0.72879,2743.8,2743.7,0.00547156]
[1749732286862,0.72889,2743.4,2743.3,3.2078]
[1749732287764,1.82224,2743.5,2742.9,9.7888]
[1749732287957,0.729,2743.0,2742.9,9.79427156]
[1749732288165,0.729,2743.0,2742.9,3.21327156]
[1749732289270,1.51106,2743.2,2743.1,0.72897]
[1749732289473,0.72897,2743.1,2743.0,24.36898]
[1749732290064,0.7821,2743.2,2743.1,0.72897]
[1749732290269,3.2078,2743.3,2743.2,0.72895]
[1749732290962,0.72891,2743.4,2743.3,0.72891]
[1749732291164,0.72888,2743.5,2743.4,0.72888]
[1749732291370,0.7289,2743.4,2743.3,0.7289]
[1749732291671,0.8172,2743.6,2743.3,23.639]
[1749732291875,0.72885,2743.6,2743.5,0.72884]
[1749732292065,0.78,2743.7,2743.6,0.72884]
[1749732292365,1.50881,2743.7,2743.6,0.72884]
[1749732292771,0.72881,2743.8,2743.7,0.72881]
[1749732292971,3.93658,2743.9,2743.8,0.72879]
[1749732293370,3.2078,2743.9,2743.8,0.72879]
[1749732293568,0.00547156,2744.2,2743.7,24.4074]
[1749732293767,0.00547156,2744.2,2744.1,0.72871]
[1749732293967,0.73416156,2744.2,2744.1,23.639]
[1749732294571,0.73416156,2744.2,2744.1,24.36771]
[1749732294772,0.73416156,2744.2,2744.1,23.639]
[1749732295278,0.73416156,2744.2,2744.1,24.36771]
[1749732295472,0.73416156,2744.2,2744.1,23.639]
[1749732296274,0.73416156,2744.2,2744.1,24.36771]
[1749732296480,0.73416156,2744.2,2744.1,23.639]
[1749732296876,0.72876,2744.0,2743.8,44.0078]
[1749732297080,0.72876,2744.0,2743.9,0.72876]
[1749732297281,0.72876,2743.9,2743.8,44.73658]
[1749732297882,0.73418156,2744.2,2744.1,0.72871]
[1749732298076,0.72876,2743.9,2743.8,45.97436]
[1749732298278,0.72876,2743.9,2743.8,26.8418]
[1749732298578,0.72876,2743.9,2743.8,23.634]
[1749732300379,0.72876,2743.9,2743.8,24.36279]
[1749732300680,0.72876,2744.0,2743.9,0.72874]
[1749732301277,0.00547156,2744.2,2743.8,23.634]
[1749732301278,0.00547156,2744.2,2743.8,26.8418]
[1749732301483,0.00547156,2744.2,2744.1,0.72871]
[1749732301682,0.00547156,2744.2,2744.1,24.35971]
[1749732302182,0.73415156,2744.2,2744.1,24.35971]
[1749732302381,0.73415156,2744.2,2743.8,3.2078]
[1749732302382,0.00547156,2744.2,2743.8,3.2078]
[1749732302589,0.72881,2743.7,2743.6,24.35884]
[1749732302886,0.72881,2743.7,2743.6,23.63]
[1749732303188,0.72887,2743.5,2743.4,3.2078]
[1749732303382,0.72887,2743.5,2743.4,26.8378]
[1749732303890,0.72887,2743.5,2743.4,23.63]
[1749732304083,1.95607,2743.5,2743.4,23.63]
[1749732304984,1.2272,2743.5,2742.9,3.21327156]
[1749732305184,0.72899,2743.1,2742.9,26.84227156]
[1749732305383,0.72899,2743.1,2743.0,0.72898]
[1749732305788,0.729,2743.0,2742.9,26.84227156]
[1749732306289,0.729,2743.0,2742.9,26.84027156]
[1749732307689,0.729,2743.0,2742.9,23.63247156]
[1749732308989,0.729,2743.0,2742.9,0.00547156]
[1749732309290,5.729,2743.0,2742.9,0.00547156]
[1749732309492,0.72915,2742.5,2742.4,23.626]
[1749732309787,0.72915,2742.5,2742.4,24.35516]
[1749732310089,0.72913,2742.6,2742.5,0.72911]
[1749732310587,0.72913,2742.6,2742.4,23.626]
[1749732310588,0.72913,2742.5,2742.4,24.35515]
[1749732311187,0.72913,2742.5,2742.4,23.626]
[1749732312287,0.72916,2742.4,2742.3,0.00547156]
[1749732312484,1.95686,2742.4,2742.3,0.00547156]
[1749732313187,1.95331855,2742.4,2742.3,0.00547156]
[1749732313791,3.93695,2742.5,2742.3,0.00547156]
[1749732313992,0.72916,2742.4,2742.3,24.36163156]
[1749732314287,0.72916,2742.4,2742.3,23.63247156]
[1749732314589,0.72916,2742.4,2742.3,24.36166156]
[1749732314992,0.72916,2742.4,2742.3,23.63247156]
[1749732315487,3.2078,2742.7,2742.3,23.63247156]
[1749732315694,0.72908,2742.7,2742.6,0.72911]
[1749732315991,0.72908,2742.7,2742.6,24.35711]
[1749732316185,0.72913,2742.5,2742.4,0.7726]
[1749732316380,0.72916,2742.4,2742.3,0.00547156]
[1749732317184,1.94876,2742.4,2742.3,0.00547156]
[1749732318487,0.72929,2741.9,2741.8,3.2078]
[1749732318689,0.7294,2741.6,2741.5,7.29939]
[1749732318885,0.7294,2741.6,2741.5,30.92739]
[1749732319583,0.7294,2741.6,2741.5,6.57]
[1749732319789,0.7294,2741.6,2741.5,30.9264]
[1749732319991,0.72932,2741.9,2741.8,0.7293]
[1749732320297,0.72929,2742.0,2741.9,0.72929]
[1749732320485,0.72929,2742.0,2741.9,25.91143045]
[1749732320691,0.72929,2742.0,2741.9,23.626]
[1749732320891,0.72929,2742.0,2741.9,23.95485013]
[1749732321086,0.72929,2742.0,2741.9,23.95486377]
[1749732321288,0.72929,2742.0,2741.9,0.32887077]
[1749732321494,1.82325,2741.9,2741.5,6.57]
[1749732321698,0.7294,2741.5,2741.4,3.2078]
[1749732322396,0.72938,2741.7,2741.4,26.8348]
[1749732322593,0.72938,2741.7,2741.6,0.72935]
[1749732323896,0.72933,2741.8,2741.7,0.72931]
[1749732324098,0.72935,2741.7,2741.6,1.99255]
[1749732325195,1.82325,2741.9,2741.5,0.827]
[1749732325401,0.72935,2741.7,2741.6,23.626]
[1749732326896,1.82332,2741.8,2741.4,3.2078]
[1749732327199,0.7294,2741.5,2741.4,3.2078]
[1749732327592,0.7294,2741.6,2741.5,0.72936]
[1749732327795,0.7294,2741.5,2741.4,3.2078]
[1749732327993,0.7294,2741.5,2741.4,3.93723]
[1749732328193,0.7294,2741.5,2741.4,3.2078]
[1749732329902,0.7294,2741.5,2741.4,26.8338]
[1749732330796,0.7294,2741.5,2741.4,27.56323]
[1749732331196,0.7294,2741.5,2741.4,26.8338]
[1749732331501,0.7294,2741.5,2741.4,3.2078]
[1749732331999,0.7294,2741.5,2741.4,27.56123]
[1749732332200,0.7294,2741.5,2741.4,28.74253]
[1749732332404,0.7294,2741.5,2741.4,27.56123]
[1749732332698,0.7294,2741.5,2741.4,26.8318]
[1749732332897,0.72943,2741.4,2741.3,0.00547156]
[1749732333302,0.72943,2741.4,2741.3,0.73492156]
[1749732334193,0.72939,2741.7,2741.6,0.72934]
[1749732334800,7.3987935,2742.0,2741.7,0.72932]
[1749732334801,0.72936,2741.8,2741.7,0.72932]
[1749732335704,0.72936,2741.8,2741.7,2.85602]
[1749732335994,0.72936,2741.8,2741.7,2.85605]
[1749732336396,3.2078,2742.6,2741.7,13.6837]
[1749732336593,0.7291,2742.7,2742.6,0.72909]
[1749732336898,4.0106,2743.2,2742.7,0.72908]
[1749732337104,0.72901,2743.0,2742.7,2.85578]
[1749732338304,0.44217156,2742.8,2742.7,2.85578]
[1749732338892,1.17122156,2742.8,2742.7,30.177]
[1749732339099,0.72913,2742.5,2742.4,0.72914]
[1749732339300,0.72917,2742.4,2742.3,0.72918]
[1749732339694,0.72919,2742.3,2742.2,46.0693]
[1749732339898,0.72919,2742.3,2742.2,23.615]
[1749732340198,0.72926,2742.1,2742.0,0.72926]
[1749732340398,0.72927,2742.0,2741.9,3.2078]
[1749732340597,0.72927,2742.0,2741.9,30.171]
[1749732341196,0.72927,2742.0,2741.9,6.556]
[1749732342094,0.72927,2742.0,2741.9,7.28529]
[1749732342300,0.72926,2742.1,2742.0,0.72926]
[1749732342494,0.72926,2742.1,2741.9,6.556]
[1749732342495,0.72927,2742.0,2741.9,7.28529]
[1749732342904,0.72927,2742.0,2741.9,9.7638]
[1749732343201,0.72927,2742.0,2741.9,3.2078]
[1749732343403,0.72929,2741.9,2741.8,24.3433]
[1749732343805,0.72929,2741.9,2741.8,23.614]
[1749732344103,0.72935,2741.8,2741.7,0.72932]
[1749732344307,0.72935,2741.8,2741.7,24.34232]
[1749732344696,0.72935,2741.8,2741.7,23.613]
[1749732344901,0.72935,2741.8,2741.7,24.34235]
[1749732346810,0.72935,2741.8,2741.7,23.613]
[1749732347010,0.72935,2741.7,2741.6,26.8198]
[1749732347315,0.72935,2741.7,2741.6,27.54917]
[1749732347508,0.72934,2741.8,2741.7,0.72932]
[1749732348209,0.7889,2742.0,2741.6,28.64324]
[1749732348409,0.7889,2742.0,2741.9,0.72929]
[1749732348410,1.5182,2742.0,2741.9,0.72929]
[1749732348607,0.72935,2741.8,2741.7,0.72933]
[1749732348816,0.72932,2741.8,2741.7,24.33935]
[1749732349406,0.72932,2741.8,2741.7,0.72935]
[1749732349706,0.72932,2741.8,2741.7,24.33935]
[1749732350103,0.7293,2742.0,2741.9,0.72926]
[1749732350300,0.72932,2741.9,2741.8,0.7293]
[1749732351209,0.72932,2741.9,2741.8,24.3373]
[1749732351599,0.72932,2741.8,2741.7,6.557]
[1749732351799,0.72932,2741.8,2741.7,30.165]
[1749732352613,0.72932,2741.8,2741.7,30.89435]
[1749732353911,1.0457,2742.0,2741.9,0.72929]
[1749732354515,0.72929,2741.9,2741.8,1.9761]
[1749732355210,0.72929,2741.9,2741.8,0.7293]
[1749732355609,0.72929,2741.9,2741.8,23.606]
[1749732357013,0.72935,2741.7,2741.6,3.2078]
[1749732357313,0.72937,2741.6,2741.5,6.557]
[1749732357615,0.72937,2741.6,2741.5,30.16]
[1749732358214,0.7294,2741.5,2741.4,1.50172]
[1749732358411,0.72943,2741.4,2741.3,6.56247156]
[1749732358910,0.72943,2741.4,2741.3,0.00547156]
[1749732359512,2.00123,2741.4,2741.3,0.00547156]
[1749732360216,7.00123,2741.4,2741.3,1.56e-06]
[1749732360417,0.72959,2740.8,2740.7,23.601]
[1749732360708,1.82378,2741.1,2740.3,3.2078]
[1749732360709,3.64768,2741.0,2740.3,3.2078]
[1749732360917,0.72969,2740.4,2740.3,26.8098]
[1749732361107,0.72969,2740.4,2740.3,3.2078]
[1749732361513,0.72969,2740.4,2740.3,26.8098]
[1749732361712,0.72972,2740.3,2740.2,6.558]
[1749732361915,0.72974,2740.2,2740.1,0.00547156]
[1749732362105,0.72974,2740.2,2740.1,23.60647156]
[1749732362409,0.72974,2740.2,2740.1,0.00547156]
[1749732362616,3.03727,2740.5,2740.2,0.72973]
[1749732362617,1.2131,2740.5,2740.2,0.72973]
[1749732362820,0.72974,2740.2,2740.1,0.73522156]
[1749732363424,0.72974,2740.2,2740.1,0.00547156]
[1749732365511,0.7299,2739.6,2739.5,3.2078]
[1749732365715,7.7264,2740.1,2739.5,3.2078]
[1749732365915,0.72986,2739.8,2739.7,0.72984]
[1749732367125,0.72981,2740.0,2739.9,0.7298]
[1749732367423,0.7298,2740.1,2740.0,0.72978]
[1749732367619,0.72975,2740.3,2740.2,0.72973]
[1749732367823,0.7298,2740.1,2740.0,0.72978]
[1749732368117,0.72979,2740.1,2740.0,0.72976]
[1749732368425,7.05922,2740.5,2739.9,1.1831]
[1749732368426,0.72973,2740.3,2740.2,0.72972]
[1749732368619,0.8448,2740.5,2739.9,3.00765]
[1749732368813,0.7297,2740.4,2740.3,0.7297]
[1749732369024,0.72972,2740.3,2740.2,23.601]
[1749732369415,1.8243,2740.3,2739.9,0.8028]
[1749732369619,0.72977,2740.1,2740.0,30.146]
[1749732369819,0.72977,2740.1,2740.0,30.8758]
[1749732370027,0.4375,2740.4,2739.8,5.0324]
[1749732370322,0.72974,2740.3,2740.2,0.72972]
[1749732370525,0.72977,2740.2,2740.1,0.72975]
[1749732370823,0.72973,2740.3,2740.2,0.72972]
[1749732371021,0.4375,2740.4,2740.3,0.72972]
[1749732371523,0.4375,2740.4,2740.3,30.87572]
[1749732371919,0.4101422,2740.4,2740.3,35.87572]
[1749732372319,0.00547156,2740.6,2740.5,0.72966]
[1749732372617,0.00547156,2740.6,2740.5,3.93746]
[1749732372821,0.73511156,2740.6,2740.5,3.93746]
[1749732373123,0.73511156,2740.6,2740.5,5.15536]
[1749732373423,0.73511156,2740.6,2740.5,3.2078]
[1749732373627,0.00547156,2740.6,2740.5,23.599]
[1749732373825,0.73511156,2740.6,2740.5,23.599]
[1749732374022,0.00547156,2740.6,2740.0,2.0238]
[1749732374217,0.72977,2740.1,2740.0,8.5688]
[1749732374424,0.72977,2740.1,2740.0,30.9479]
[1749732374724,0.7921,2740.5,2740.0,30.9479]
[1749732374925,0.72972,2740.4,2740.3,0.72969]
[1749732375327,0.72972,2740.4,2740.3,2.00369]
[1749732375522,0.72968,2740.5,2740.4,0.72966]
[1749732375721,0.00547156,2740.6,2740.5,0.72966]
[1749732376023,0.00547156,2740.6,2740.5,5.21146]
[1749732376224,0.00547156,2740.6,2740.5,5.98876]
[1749732376424,0.32267156,2740.6,2740.5,10.98876]
[1749732377727,0.32267156,2740.6,2740.5,51.78876]
[1749732378330,0.32267156,2740.6,2740.5,81.92876]
[1749732378527,0.32267156,2740.6,2740.5,81.92776]
[1749732379227,0.7295,2741.2,2741.1,0.72949]
[1749732379528,0.7295,2741.2,2741.1,30.86649]
[1749732379728,4.0132,2741.6,2741.0,3.2078]
[1749732379729,0.7295,2741.1,2741.0,3.2078]
[1749732380627,0.7295,2741.1,2741.0,26.7988]
[1749732381221,0.72956,2740.9,2740.8,0.00547156]
[1749732381926,5.22696,2740.9,2740.8,0.00547156]
[1749732382822,0.72972,2740.3,2740.2,26.7968]
[1749732383325,0.72972,2740.3,2740.2,3.2078]
[1749732383525,0.72972,2740.3,2740.2,26.7958]
[1749732384230,0.72977,2740.1,2740.0,0.00364612]
[1749732384824,1.98317,2740.1,2740.0,0.00364612]
[1749732385128,6.98317,2740.1,2740.0,0.00364612]
[1749732385324,1.98317,2740.1,2740.0,0.00364612]
[1749732385931,2.75887,2740.1,2740.0,0.00364612]
[1749732386127,0.7299,2739.6,2739.5,3.2078]
[1749732388228,0.7299,2739.6,2739.5,3.93773]
[1749732388429,0.7299,2739.6,2739.5,3.2078]
[1749732389138,0.72998,2739.3,2739.2,3.2078]
[1749732389537,1.8247,2739.7,2739.2,3.2078]
[1749732389732,1.8248,2739.6,2739.2,3.2078]
[1749732389942,0.72998,2739.3,2739.2,26.7938]
[1749732390343,0.72998,2739.3,2739.2,3.2078]
[1749732390944,0.72998,2739.3,2739.2,3.93781]
[1749732391150,0.72998,2739.3,2739.2,3.2078]
[1749732392849,0.72998,2739.3,2739.2,3.93781]
[1749732393048,0.72998,2739.3,2739.2,3.2078]
[1749732396147,0.72998,2739.3,2739.2,3.93781]
[1749732396453,0.72992,2739.6,2739.5,0.72991]
[1749732397152,0.72992,2739.6,2739.3,25.5833]
[1749732397153,0.72996,2739.5,2739.4,0.72994]
[1749732397350,0.72996,2739.5,2739.4,30.84594]